bitfinex-derivatives/quotes_BTCF0:USTF0_20241130
["timestamp","ask_amount","ask_price","bid_price","bid_amount"]
[1732954552835,0.002,96946.0,96945.0,0.412352]
[1732954553236,0.01221413,96953.0,96945.0,0.3608]
[1732954553530,0.002,96946.0,96945.0,0.412352]
[1732954553726,0.002,96946.0,96945.0,0.538952]
[1732954557236,0.051546,96957.0,96946.0,0.051551]
[1732954557435,0.051546,96957.0,96955.0,0.051546]
[1732954557744,0.1544214,96956.0,96955.0,0.051546]
[1732954557938,0.2059674,96956.0,96955.0,0.051546]
[1732954558337,0.051546,96956.0,96955.0,0.051546]
[1732954558841,0.20658169,96956.0,96955.0,0.051546]
[1732954560134,0.20658169,96956.0,96955.0,0.052546]
[1732954560536,0.20658169,96956.0,96955.0,0.413346]
[1732954560736,0.20658169,96956.0,96955.0,0.412346]
[1732954560930,0.20858169,96956.0,96955.0,0.413346]
[1732954562339,0.053546,96956.0,96955.0,0.413346]
[1732954568845,0.002,96956.0,96955.0,0.413346]
[1732954570142,0.002,96956.0,96955.0,0.539946]
[1732954584060,0.002,96956.0,96955.0,0.539866]
[1732954584257,0.053546,96956.0,96955.0,0.413346]
[1732954584457,0.053546,96956.0,96955.0,0.3618]
[1732954586359,0.053546,96956.0,96955.0,0.413347]
[1732954587066,0.053546,96956.0,96955.0,0.412347]
[1732954589465,0.051546,96956.0,96955.0,0.412347]
[1732954589660,0.053546,96956.0,96955.0,0.412347]
[1732954590061,0.053546,96956.0,96955.0,0.3608]
[1732954592565,0.051546,96956.0,96955.0,0.3608]
[1732954592870,0.053546,96956.0,96955.0,0.3618]
[1732954593858,0.053546,96956.0,96955.0,0.3608]
[1732954595480,0.051552,96945.0,96944.0,0.12652]
[1732954595664,0.051552,96945.0,96943.0,0.3608]
[1732954596784,0.053552,96945.0,96944.0,0.051552]
[1732954599387,0.051552,96945.0,96944.0,0.051552]
[1732954599586,0.053552,96945.0,96944.0,0.051552]
[1732954602487,0.053552,96945.0,96944.0,0.412352]
[1732954605794,0.053552,96945.0,96944.0,0.3608]
[1732954607497,0.053552,96945.0,96944.0,0.412352]
[1732954616297,0.053552,96945.0,96944.0,0.051552]
[1732954617502,0.053552,96945.0,96944.0,0.082552]
[1732954619903,0.055552,96945.0,96944.0,0.082552]
[1732954621300,0.051552,96945.0,96944.0,0.082552]
[1732954621500,0.053552,96945.0,96944.0,0.082552]
[1732954623007,0.053552,96945.0,96944.0,0.031]
[1732954629505,0.053552,96945.0,96943.0,0.051553]
[1732954629506,0.051552,96944.0,96943.0,0.051553]
[1732954631905,0.053552,96944.0,96943.0,0.051553]
[1732954651332,0.051553,96943.0,96942.0,0.3608]
[1732954652436,0.20640197,96943.0,96942.0,0.3608]
[1732954652624,0.61264897,96943.0,96930.0,0.36132]
[1732954652819,0.051559,96931.0,96930.0,0.3608]
[1732954654335,0.053559,96931.0,96930.0,0.3608]
[1732954656832,0.06609118,96931.0,96930.0,0.3608]
[1732954660031,0.06609118,96931.0,96926.0,0.051562]
[1732954661234,0.06609118,96931.0,96929.0,0.05156]
[1732954661437,0.052559,96931.0,96929.0,0.05156]
[1732954661634,0.001,96931.0,96929.0,0.05156]
[1732954661836,0.051552,96945.0,96942.0,0.051554]
[1732954662036,0.051552,96945.0,96930.0,0.0328]
[1732954662037,0.051552,96945.0,96943.0,0.082653]
[1732954662234,0.1264,96952.0,96943.0,0.0311]
[1732954662438,0.1264,96952.0,96947.0,0.051551]
[1732954662639,0.20698184,96948.0,96947.0,0.051551]
[1732954663238,0.051552,96945.0,96943.0,0.0311]
[1732954663945,0.055552,96945.0,96943.0,0.0311]
[1732954664642,0.004,96945.0,96942.0,0.051553]
[1732954664842,0.051553,96944.0,96942.0,0.051553]
[1732954665540,0.004,96945.0,96943.0,0.051553]
[1732954667347,0.051551,96947.0,96943.0,0.051553]
[1732954667537,0.003,96944.0,96943.0,0.051553]
[1732954668855,0.051552,96946.0,96943.0,0.051553]
[1732954669040,0.005,96945.0,96943.0,0.051553]
[1732954669238,0.056552,96945.0,96943.0,0.051553]
[1732954670449,0.051552,96945.0,96943.0,0.051553]
[1732954670639,0.005,96944.0,96943.0,0.051553]
[1732954671248,0.051552,96945.0,96943.0,0.051553]
[1732954671249,0.056552,96945.0,96943.0,0.051553]
[1732954671944,0.005,96944.0,96943.0,0.051553]
[1732954673648,0.005,96945.0,96944.0,0.051552]
[1732954674246,0.051551,96948.0,96945.0,0.051551]
[1732954674445,0.005,96944.0,96937.0,0.3608]
[1732954674845,0.15541367,96947.0,96945.0,0.051552]
[1732954675041,0.051551,96948.0,96945.0,0.051552]
[1732954675249,0.051551,96948.0,96947.0,0.051551]
[1732954675645,0.20533998,96948.0,96947.0,0.051551]
[1732954676443,0.01228767,96949.0,96947.0,0.412351]
[1732954676653,0.051547,96956.0,96950.0,0.051549]
[1732954677152,0.12632,96958.0,96950.0,0.051549]
[1732954677962,0.00654794,96951.0,96950.0,0.052549]
[1732954679658,0.005,96951.0,96950.0,0.052549]
[1732954683964,0.01243253,96964.0,96963.0,0.051542]
[1732954684259,0.051538,96971.0,96970.0,0.051539]
[1732954684651,0.20721588,96971.0,96970.0,0.051539]
[1732954684859,0.15567788,96971.0,96970.0,0.051539]
[1732954685254,0.1546724,96972.0,96965.0,0.051541]
[1732954685474,0.1546724,96972.0,96970.0,0.009]
[1732954685961,0.01362328,96973.0,96970.0,0.009]
[1732954686155,0.15452151,96972.0,96971.0,0.051538]
[1732954687366,0.00154727,96973.0,96971.0,0.412338]
[1732954688360,0.00154727,96973.0,96971.0,0.421338]
[1732954688563,0.00154727,96973.0,96971.0,0.427338]
[1732954688761,0.00154727,96973.0,96971.0,0.418338]
[1732954688961,0.00154727,96973.0,96971.0,0.427338]
[1732954699871,0.01252625,96980.0,96979.0,0.051534]
[1732954700170,0.05153,96986.0,96983.0,0.051531]
[1732954700474,0.06404822,96986.0,96984.0,0.051531]
[1732954700672,0.15426635,96985.0,96984.0,0.051531]
[1732954701770,0.15426635,96985.0,96984.0,0.056531]
[1732954702161,0.15426635,96985.0,96984.0,0.051531]
[1732954702365,0.15426635,96985.0,96984.0,0.057531]
[1732954703475,0.15426635,96985.0,96984.0,0.060531]
[1732954706764,0.3608,96999.0,96984.0,0.060531]
[1732954706970,0.051524,96997.0,96994.0,0.051525]
[1732954707168,0.051524,96997.0,96995.0,0.051525]
[1732954707369,0.15421479,96996.0,96995.0,0.051525]
[1732954708673,0.15421479,96996.0,96995.0,0.055525]
[1732954709670,0.15421479,96996.0,96995.0,0.057525]
[1732954712880,0.20573979,96996.0,96995.0,0.057525]
[1732954713279,0.051525,96996.0,96995.0,0.057525]
[1732954713784,0.20638507,96996.0,96995.0,0.057525]
[1732954714082,0.20638507,96996.0,96995.0,0.006]
[1732954739699,0.20638507,96996.0,96973.0,0.0322]
[1732954739700,0.051537,96974.0,96973.0,0.0322]
[1732954740902,0.051537,96974.0,96973.0,0.0402]
[1732954741290,0.051537,96974.0,96973.0,0.0492]
[1732954745106,0.051537,96974.0,96973.0,0.100737]
[1732954745293,0.051533,96980.0,96975.0,0.051536]
[1732954745506,0.051533,96980.0,96976.0,0.051535]
[1732954745698,0.051534,96979.0,96977.0,0.051535]
[1732954748107,0.051534,96979.0,96977.0,0.060535]
[1732954748297,0.051534,96979.0,96977.0,0.066535]
[1732954748700,0.051532,96983.0,96982.0,0.051532]
[1732954749602,0.3608,96988.0,96986.0,0.05153]
[1732954749803,0.412329,96988.0,96987.0,0.0634]
[1732954750202,0.56665078,96988.0,96987.0,0.0634]
[1732954750505,0.20585078,96988.0,96987.0,0.0634]
[1732954750713,0.051527,96993.0,96990.0,0.051528]
[1732954750901,0.051524,96998.0,96991.0,0.0317]
[1732954751101,0.11222717,97000.0,96994.0,0.3608]
[1732954751301,0.051525,96997.0,96996.0,0.051525]
[1732954753604,0.051525,96997.0,96996.0,0.053525]
[1732954753799,0.051525,96997.0,96996.0,0.055525]
[1732954754205,0.051525,96997.0,96996.0,0.053525]
[1732954754404,0.051525,96997.0,96996.0,0.056525]
[1732954757110,0.1,97000.0,96997.0,0.051524]
[1732954757309,0.151523,97000.0,96997.0,0.051524]
[1732954758019,0.151523,97000.0,96998.0,0.051524]
[1732954759111,0.1,97000.0,96998.0,0.051524]
[1732954760316,0.1,97000.0,96998.0,0.052524]
[1732954761507,0.1,97000.0,96998.0,0.054524]
[1732954763313,0.1,97000.0,96998.0,0.055524]
[1732954764216,0.1,97000.0,96998.0,0.057524]
[1732954764423,0.1,97000.0,96998.0,0.060524]
[1732954764811,0.1,97000.0,96998.0,0.056524]
[1732954765010,0.1,97000.0,96998.0,0.061524]
[1732954765723,0.1,97000.0,96998.0,0.065524]
[1732954766927,0.00154686,97013.0,97012.0,0.051516]
[1732954767226,0.00154686,97013.0,97012.0,0.412316]
[1732954767427,0.00154686,97013.0,97012.0,0.473216]
[1732954768016,0.00154686,97013.0,97012.0,0.475216]
[1732954768217,0.3608,97050.0,97012.0,0.7277]
[1732954768425,0.051502,97039.0,97038.0,0.3608]
[1732954769224,0.08453014,97050.0,97038.0,0.3608]
[1732954769225,0.04329004,97050.0,97038.0,0.3608]
[1732954769430,0.051497,97048.0,97043.0,0.0515]
[1732954769631,0.09692018,97050.0,97043.0,0.0515]
[1732954769632,0.051498,97047.0,97043.0,0.0515]
[1732954769835,0.2061981,97047.0,97043.0,0.0515]
[1732954770224,0.051498,97047.0,97038.0,0.3608]
[1732954770531,0.051498,97047.0,97045.0,0.051499]
[1732954770532,0.15459859,97046.0,97045.0,0.051499]
[1732954771127,0.15459859,97049.0,97043.0,0.002]
[1732954771334,0.15459859,97049.0,97048.0,0.051497]
[1732954771526,0.0309,97050.0,97048.0,0.051497]
[1732954771732,0.0309,97050.0,97049.0,0.3608]
[1732954774035,0.0309,97050.0,97049.0,0.3628]
[1732954774420,0.0309,97050.0,97049.0,0.3668]
[1732954777524,0.01219183,97055.0,97049.0,0.3668]
[1732954777726,0.0303,97062.0,97049.0,0.3668]
[1732954778034,0.18414468,97062.0,97058.0,0.051492]
[1732954778734,0.05149,97061.0,97058.0,0.051492]
[1732954779222,0.18414468,97062.0,97058.0,0.051492]
[1732954779223,0.20631243,97060.0,97058.0,0.051492]
[1732954779627,0.051491,97060.0,97058.0,0.051492]
[1732954780028,0.15530315,97059.0,97058.0,0.051492]
[1732954782722,0.15530315,97059.0,97052.0,0.051495]
[1732954782923,0.15530315,97059.0,97049.0,0.3608]
[1732954783224,0.051495,97053.0,97052.0,0.051495]
[1732954784329,0.051496,97051.0,97049.0,0.3608]
[1732954786838,0.051496,97051.0,97049.0,0.3638]
[1732954787439,0.051496,97051.0,97049.0,0.3648]
[1732954788739,0.051496,97051.0,97049.0,0.416296]
[1732954792640,0.051496,97051.0,97049.0,0.3648]
[1732954793144,0.051496,97051.0,97049.0,0.004]
[1732954794752,0.08583014,97060.0,97049.0,0.004]
[1732954795047,0.051496,97050.0,97049.0,0.004]
[1732954796754,0.09797366,97060.0,97049.0,0.004]
[1732954796954,0.051496,97050.0,97049.0,0.004]
[1732954797641,0.051494,97054.0,97049.0,0.006]
[1732954797844,0.04434352,97060.0,97049.0,0.053496]
[1732954797845,0.09797366,97060.0,97049.0,0.053496]
[1732954798150,0.20665538,97053.0,97049.0,0.002]
[1732954798347,0.051495,97053.0,97050.0,0.051496]
[1732954799256,0.051495,97053.0,97051.0,0.051495]
[1732954800055,0.051495,97053.0,97052.0,0.051495]
[1732954800862,0.12604,97058.0,97051.0,0.003]
[1732954800863,0.051495,97052.0,97051.0,0.003]
[1732954801358,0.051495,97052.0,97050.0,0.18514714]
[1732954801661,0.051496,97051.0,97050.0,0.18514714]
[1732954802160,0.051496,97051.0,97049.0,0.23664414]
[1732954802361,0.051496,97050.0,97049.0,0.051497]
[1732954802962,0.12604,97058.0,97051.0,0.001]
[1732954802963,0.3608,97056.0,97051.0,0.001]
[1732954803256,0.051495,97052.0,97051.0,0.004]
[1732954803557,0.051495,97052.0,97051.0,0.001]
[1732954803752,0.051495,97052.0,97049.0,0.006]
[1732954803950,0.051496,97050.0,97049.0,0.006]
[1732954804157,0.051496,97050.0,97049.0,0.002]
[1732954804364,0.20518159,97050.0,97049.0,0.002]
[1732954804565,0.051503,97038.0,97036.0,0.18523831]
[1732954804866,0.0515,97044.0,97043.0,0.0515]
[1732954805158,0.12604,97053.0,97041.0,0.3608]
[1732954805358,0.15368559,97044.0,97041.0,0.3608]
[1732954805567,0.12604,97053.0,97043.0,0.0515]
[1732954805568,0.051498,97046.0,97043.0,0.0515]
[1732954805759,0.051499,97045.0,97043.0,0.0515]
[1732954805959,0.051499,97044.0,97043.0,0.0515]
[1732954806451,0.20590757,97044.0,97043.0,0.0515]
[1732954807062,0.15440857,97044.0,97043.0,0.007]
[1732954807361,0.20590757,97044.0,97043.0,0.007]
[1732954807560,0.051499,97044.0,97043.0,0.007]
[1732954807759,0.20519178,97044.0,97043.0,0.01]
[1732954810755,0.21757324,97044.0,97043.0,0.01]
[1732954810956,0.34361324,97044.0,97043.0,0.01]
[1732954814862,0.37621324,97044.0,97043.0,0.01]
[1732954823573,0.25017324,97044.0,97043.0,0.01]
[1732954823774,0.37617324,97044.0,97043.0,0.01]
[1732954836379,0.25017324,97044.0,97043.0,0.01]
[1732954836592,0.37617324,97044.0,97043.0,0.01]
[1732954841788,0.34357324,97044.0,97043.0,0.01]
[1732954848494,0.29207424,97044.0,97043.0,0.0615]
[1732954849497,0.16607424,97044.0,97043.0,0.0615]
[1732954849687,0.29207424,97044.0,97043.0,0.0615]
[1732954853489,0.29207424,97044.0,97043.0,0.01]
[1732954855892,0.051503,97037.0,97032.0,0.00052]
[1732954856091,0.05151,97024.0,97012.0,0.54594714]
[1732954856295,0.17747,97024.0,97014.0,0.051515]
[1732954856499,0.33164182,97024.0,97014.0,0.051515]
[1732954857100,0.33175744,97024.0,97014.0,0.051515]
[1732954857398,0.28024744,97024.0,97011.0,0.0623]
[1732954857593,0.051514,97017.0,97011.0,0.0623]
[1732954857892,0.12596,97016.0,97011.0,0.0623]
[1732954858104,0.051516,97012.0,97011.0,0.0623]
[1732954858605,0.051516,97012.0,97011.0,0.0683]
[1732954859194,0.058516,97012.0,97011.0,0.0633]
[1732954861300,0.060516,97012.0,97011.0,0.0633]
[1732954861794,0.009,97012.0,97011.0,0.0633]
[1732954864901,0.009,97012.0,97011.0,0.0939]
[1732954868304,0.009,97012.0,97011.0,0.0633]
[1732954870920,0.16291674,97012.0,97011.0,0.001]
[1732954880309,0.52371674,97012.0,97011.0,0.001]
[1732954884617,0.20526772,96998.0,96997.0,0.00012084]
[1732954884914,0.20626772,96998.0,96997.0,0.00012084]
[1732954885409,0.20726772,96998.0,96997.0,0.00012084]
[1732954888909,0.56806772,96998.0,96997.0,0.00012084]
[1732954893702,0.69402772,96998.0,96997.0,0.00012084]
[1732954898618,0.69411385,96998.0,96997.0,0.00012084]
[1732954901521,0.051529,96988.0,96987.0,0.0317]
[1732954901717,0.177489,96988.0,96987.0,0.0317]
[1732954901917,0.33147922,96988.0,96987.0,0.0317]
[1732954902821,0.33147922,96988.0,96987.0,0.0347]
[1732954903134,0.33147922,96988.0,96987.0,0.003]
[1732954903425,0.33147922,96988.0,96987.0,0.004]
[1732954910118,0.34372215,96988.0,96987.0,0.004]
[1732954911026,0.70452215,96988.0,96987.0,0.004]
[1732954926741,0.57856215,96988.0,96987.0,0.004]
[1732954926936,0.65295315,96988.0,96987.0,0.004]
[1732954927245,0.65295315,96988.0,96987.0,0.0367]
[1732954927542,0.52703315,96988.0,96987.0,0.0367]
[1732954930645,0.16623315,96988.0,96987.0,0.0367]
[1732954934947,0.16623315,96988.0,96987.0,0.0357]
[1732954935854,0.16623315,96988.0,96987.0,0.08723]
[1732954936648,0.16623315,96988.0,96987.0,0.08423]
[1732954941954,0.16373315,96988.0,96987.0,0.08423]
[1732954945853,0.12588,96999.0,96997.0,0.051524]
[1732954946054,0.3608,97004.0,96997.0,0.051524]
[1732954946055,0.12588,97001.0,96997.0,0.051524]
[1732954946353,0.1548608,96998.0,96997.0,0.051524]
[1732954947156,0.1568608,96998.0,96997.0,0.051524]
[1732954948247,0.16932362,96998.0,96997.0,0.051524]
[1732954948447,0.17132362,96998.0,96997.0,0.051524]
[1732954952760,0.1588608,96998.0,96997.0,0.051524]
[1732954959668,0.16169731,96998.0,96997.0,0.051524]
[1732954978960,0.21322131,96998.0,96997.0,0.051524]
[1732954979164,0.16169731,96998.0,96997.0,0.051524]
[1732954979870,0.28749731,96998.0,96997.0,0.051524]
[1732954983576,0.3608,97017.0,97016.0,0.051514]
[1732954983772,0.0654,97037.0,97035.0,0.051504]
[1732954984170,0.22037315,97037.0,97035.0,0.051504]
[1732954984679,7.913e-05,97036.0,97035.0,0.051504]
[1732954984882,0.15505228,97036.0,97035.0,0.051504]
[1732954986674,0.15505228,97036.0,97035.0,0.052504]
[1732954987284,0.15905228,97036.0,97035.0,0.052504]
[1732954992282,0.15905228,97036.0,97035.0,0.001]
[1732954992481,0.15905228,97036.0,97028.0,0.36132]
[1732954992685,0.051504,97035.0,97030.0,0.051507]
[1732954993189,0.18676794,97034.0,97030.0,0.051507]
[1732954993871,0.18676794,97034.0,97030.0,0.052507]
[1732954994980,0.23827294,97034.0,97030.0,0.051507]
[1732954995289,0.24427294,97034.0,97030.0,0.052507]
[1732954995585,0.1258,97033.0,97030.0,0.052507]
[1732954996083,0.15476547,97032.0,97030.0,0.052507]
[1732954996484,0.15476547,97032.0,97030.0,0.001]
[1732954997287,0.15476547,97032.0,97028.0,0.3608]
[1732954997480,0.16176547,97032.0,97030.0,0.001]
[1732954998585,0.16276547,97032.0,97030.0,0.001]
[1732954998779,0.16276547,97032.0,97030.0,0.052507]
[1732954998981,0.16276547,97032.0,97030.0,0.001]
[1732954999280,0.051506,97031.0,97030.0,0.001]
[1732954999689,0.15442898,97031.0,97030.0,0.001]
[1732955000082,0.28018898,97031.0,97030.0,0.001]
[1732955001485,0.28018898,97031.0,97029.0,0.051507]
[1732955001679,0.28718898,97031.0,97030.0,0.001]
[1732955001880,0.16142898,97031.0,97030.0,0.001]
[1732955002185,0.28018898,97031.0,97029.0,0.051507]
[1732955002382,0.28718898,97031.0,97030.0,0.001]
[1732955003891,0.28018898,97031.0,97029.0,0.051507]
[1732955004192,0.28718898,97031.0,97030.0,0.001]
[1732955005186,0.28718898,97031.0,97029.0,0.052507]
[1732955005485,0.16142898,97031.0,97029.0,0.052507]
[1732955005680,0.15442898,97031.0,97029.0,0.051507]
[1732955005885,0.15442898,97031.0,97030.0,0.001]
[1732955005886,0.16142898,97031.0,97030.0,0.001]
[1732955006086,0.007,97031.0,97030.0,0.001]
[1732955006390,0.16225612,97031.0,97030.0,0.001]
[1732955007491,0.007,97031.0,97030.0,0.051507]
[1732955007979,0.007,97031.0,97030.0,0.001]
[1732955014597,0.007,97031.0,97030.0,0.0317]
[1732955015092,0.007,97031.0,97030.0,0.15742]
[1732955018394,0.007,97031.0,97030.0,0.0317]
[1732955018594,0.007,97031.0,97030.0,0.15742]
[1732955022803,0.007,97031.0,97030.0,0.0317]
[1732955023001,0.007,97031.0,97030.0,0.001]
[1732955028017,0.007,97031.0,97030.0,0.3618]
[1732955029810,0.007,97031.0,97030.0,0.413307]
[1732955040027,0.007,97031.0,97030.0,0.59864076]
[1732955040620,0.007,97031.0,97030.0,0.413307]
[1732955041023,0.007,97031.0,97030.0,0.59864076]
[1732955041338,0.007,97031.0,97030.0,0.413307]
[1732955043525,0.007,97031.0,97030.0,0.59864076]
[1732955043927,0.007,97031.0,97030.0,0.413307]
[1732955046934,0.007,97031.0,97030.0,0.59843704]
[1732955047435,0.007,97031.0,97030.0,0.413307]
[1732955048131,0.007,97031.0,97030.0,0.412307]
[1732955048732,0.007,97031.0,97030.0,0.43292705]
[1732955049534,0.007,97031.0,97030.0,0.43192705]
[1732955050234,0.007,97031.0,97030.0,0.61705709]
[1732955051636,0.007,97031.0,97030.0,0.43192705]
[1732955056735,0.007,97031.0,97030.0,0.61699687]
[1732955056936,0.007,97031.0,97030.0,0.43192705]
[1732955059234,0.007,97031.0,97030.0,0.55760705]
[1732955062633,0.007,97031.0,97030.0,0.74268303]
[1732955063340,0.007,97031.0,97030.0,0.72206298]
[1732955063534,0.007,97031.0,97030.0,0.536987]
[1732955064431,0.007,97031.0,97030.0,0.411307]
[1732955066535,0.007,97031.0,97030.0,0.3608]
[1732955066742,0.007,97031.0,97030.0,0.412307]
[1732955086752,0.007,97031.0,97030.0,0.413307]
[1732955102656,0.058506,97031.0,97030.0,0.413307]
[1732955106470,0.058506,97031.0,97030.0,0.052507]
[1732955107965,0.058506,97031.0,97030.0,0.001]
[1732955108166,0.21210062,97031.0,97030.0,0.001]
[1732955108357,0.21210062,97031.0,97010.0,0.00154605]
[1732955108358,0.051517,97011.0,97010.0,0.00154605]
[1732955110364,0.053517,97011.0,97010.0,0.00154605]
[1732955111169,0.054517,97011.0,97010.0,0.00154605]
[1732955112669,0.054517,97011.0,97006.0,0.051519]
[1732955112670,0.051518,97010.0,97006.0,0.051519]
[1732955112978,0.05152,97006.0,97005.0,0.3608]
[1732955114577,0.06381863,97006.0,97005.0,0.3608]
[1732955116178,0.06381863,97006.0,97005.0,0.3628]
[1732955118176,0.06381863,97006.0,97005.0,0.002]
[1732955125872,0.01229863,97006.0,97005.0,0.002]
[1732955126074,0.12568,97010.0,97005.0,0.002]
[1732955126477,0.15441718,97009.0,97005.0,0.002]
[1732955127582,0.051519,97007.0,97005.0,0.002]
[1732955127879,0.051519,97007.0,97005.0,0.001]
[1732955128070,0.051519,97007.0,97005.0,0.002]
[1732955128266,0.051519,97007.0,97005.0,0.001]
[1732955128473,0.051519,97007.0,97005.0,0.002]
[1732955128877,0.177196,97013.0,97005.0,0.001]
[1732955129079,0.051517,97011.0,97009.0,0.051518]
[1732955129480,0.051518,97009.0,97005.0,0.002]
[1732955129677,0.15565045,97010.0,97005.0,0.002]
[1732955129976,0.15565045,97008.0,97005.0,0.001]
[1732955130173,0.15565045,97011.0,97005.0,0.002]
[1732955130372,0.13759705,97013.0,97005.0,0.002]
[1732955130578,0.051519,97008.0,97005.0,0.002]
[1732955130975,0.15360571,97007.0,97005.0,0.001]
[1732955131578,0.15360571,97007.0,97003.0,0.051521]
[1732955131770,0.15360571,97007.0,97005.0,0.001]
[1732955131976,0.15360571,97007.0,97005.0,0.002]
[1732955132178,0.15360571,97007.0,97005.0,0.001]
[1732955132375,0.15360571,97007.0,97005.0,0.002]
[1732955132776,0.15360571,97007.0,97005.0,0.001]
[1732955133381,0.20512471,97007.0,97005.0,0.001]
[1732955135087,0.20512471,97007.0,97005.0,0.002]
[1732955137183,0.20512471,97007.0,97005.0,0.05352]
[1732955158806,0.20512471,97007.0,97006.0,0.05152]
[1732955165305,0.15360571,97007.0,97006.0,0.05152]
[1732955185029,0.15360571,97007.0,97002.0,0.3608]
[1732955185227,0.051521,97004.0,97002.0,0.051521]
[1732955186228,0.051521,97004.0,97002.0,0.053521]
[1732955187634,0.051521,97004.0,97002.0,0.054521]
[1732955197431,0.15798,97008.0,97006.0,0.051519]
[1732955197832,0.1540532,97007.0,97006.0,0.051519]
[1732955212847,0.1540532,97007.0,97006.0,0.412319]
[1732955220348,0.1540532,97007.0,97006.0,0.051519]
[1732955238062,0.051513,97018.0,97006.0,0.051519]
[1732955238063,0.05158313,97036.0,97006.0,0.051519]
[1732955238356,0.032,97035.0,97030.0,0.051507]
[1732955238558,0.49992,97031.0,97030.0,0.051507]
[1732955238859,0.65533938,97031.0,97030.0,0.051507]
[1732955239061,0.66760665,97031.0,97030.0,0.051507]
[1732955241053,0.68060665,97031.0,97030.0,0.052507]
[1732955246663,0.55448665,97031.0,97030.0,0.052507]
[1732955246862,0.68056665,97031.0,97030.0,0.052507]
[1732955267578,0.55448665,97031.0,97030.0,0.052507]
[1732955269375,0.19368665,97031.0,97030.0,0.052507]
[1732955283879,0.026,97031.0,97030.0,0.052507]
[1732955310504,0.026,97031.0,97030.0,0.413307]
[1732955312113,0.026,97031.0,97030.0,0.052507]
[1732955341725,0.02,97031.0,97030.0,0.051507]
[1732955342224,0.016,97031.0,97030.0,0.051507]
[1732955342416,0.018,97031.0,97030.0,0.051507]
[1732955343019,0.016,97031.0,97030.0,0.051507]
[1732955343215,0.018,97031.0,97030.0,0.051507]
[1732955343829,0.018,97031.0,97030.0,0.412307]
[1732955368935,0.018,97031.0,97030.0,0.537987]
[1732955371644,0.018,97031.0,97030.0,0.412307]
[1732955371940,0.018,97031.0,97030.0,0.537987]
[1732955374045,0.018,97031.0,97030.0,0.412307]
[1732955380150,0.03016886,97031.0,97030.0,0.412307]
[1732955391254,0.02916886,97031.0,97030.0,0.412307]
[1732955392154,0.03016886,97031.0,97030.0,0.412307]
[1732955392343,0.018,97031.0,97030.0,0.412307]
[1732955393058,0.019,97031.0,97030.0,0.412307]
[1732955393955,0.018,97031.0,97030.0,0.412307]
[1732955394453,0.015,97031.0,97030.0,0.412307]
[1732955394640,0.018,97031.0,97030.0,0.412307]
[1732955396150,0.016,97031.0,97030.0,0.412307]
[1732955396352,0.017,97031.0,97030.0,0.412307]
[1732955396948,0.016,97031.0,97030.0,0.412307]
[1732955397152,0.017,97031.0,97030.0,0.412307]
[1732955400150,0.017,97031.0,97030.0,0.051507]
[1732955400356,0.016,97031.0,97030.0,0.412307]
[1732955400550,0.017,97031.0,97030.0,0.412307]
[1732955403364,0.016,97031.0,97030.0,0.412307]
[1732955403546,0.017,97031.0,97030.0,0.412307]
[1732955404453,0.017,97031.0,97030.0,0.051507]
[1732955404454,0.018,97031.0,97030.0,0.051507]
[1732955404758,0.018,97031.0,97030.0,0.412307]
[1732955405061,0.015,97031.0,97030.0,0.412307]
[1732955405251,0.018,97031.0,97030.0,0.412307]
[1732955406365,0.017,97031.0,97026.0,0.051508]
[1732955406656,0.051508,97027.0,97026.0,0.051508]
[1732955408047,0.054508,97027.0,97026.0,0.051508]
[1732955408460,0.051512,97021.0,97020.0,0.412312]
[1732955409561,0.055509,97027.0,97025.0,0.051509]
[1732955410249,0.054509,97027.0,97025.0,0.051509]
[1732955410559,0.051509,97027.0,97025.0,0.051509]
[1732955411160,0.054509,97027.0,97025.0,0.051509]
[1732955419961,0.051509,97026.0,97025.0,0.051509]
[1732955421754,0.053509,97026.0,97025.0,0.051509]
[1732955422667,0.054509,97026.0,97025.0,0.051509]
[1732955423258,0.054509,97026.0,97020.0,0.051512]
[1732955423259,0.051512,97021.0,97020.0,0.051512]
[1732955429366,0.051514,97017.0,97016.0,0.412314]
[1732955430467,0.051514,97017.0,97016.0,0.413314]
[1732955431876,0.051514,97017.0,97016.0,0.415314]
[1732955433971,0.06398295,97017.0,97016.0,0.415314]
[1732955437373,0.06398295,97017.0,97016.0,0.3638]
[1732955438070,0.06398295,97017.0,97016.0,0.36351]
[1732955438270,0.06398295,97017.0,97016.0,0.3638]
[1732955441467,0.06398295,97017.0,97016.0,0.003]
[1732955444576,0.21890714,97017.0,97016.0,0.003]
[1732955453488,0.31710714,97017.0,97016.0,0.003]
[1732955456591,0.33773595,97017.0,97016.0,0.003]
[1732955456791,0.051525,96997.0,96996.0,0.051525]
[1732955458278,0.052525,96997.0,96996.0,0.060525]
[1732955459686,0.052525,96997.0,96996.0,0.066525]
[1732955461496,0.052525,96997.0,96996.0,0.015]
[1732955462218,0.0648429,96997.0,96996.0,0.015]
[1732955470194,0.06496532,96997.0,96996.0,0.015]
[1732955470399,0.21923316,96997.0,96996.0,0.015]
[1732955471901,0.21923316,96997.0,96996.0,0.009]
[1732955473697,0.21923316,96997.0,96986.0,0.00012941]
[1732955473893,0.05153,96987.0,96986.0,0.00012941]
[1732955474105,0.17717,96987.0,96986.0,0.00012941]
[1732955474905,0.33192222,96987.0,96986.0,0.00012941]
[1732955475802,0.33192222,96987.0,96986.0,0.00112941]
[1732955476308,0.33192222,96987.0,96986.0,0.00312941]